bitfinex/quotes_ETHUSD_20220218
["timestamp","ask_amount","ask_price","bid_price","bid_amount"]
[1645143795269,4.3002,2874.7,2874.6,0.00154551]
[1645143795872,7.573,2875.2,2874.6,1.10326909]
[1645143796070,7.573,2875.2,2874.6,1.52126909]
[1645143796071,12.0493,2875.2,2874.6,1.52126909]
[1645143796269,12.0493,2875.2,2874.7,1.10172358]
[1645143796470,0.36611296,2875.1,2874.6,0.41954551]
[1645143796670,1.23583296,2875.1,2874.6,0.00154551]
[1645143796872,0.36611296,2875.0,2874.6,0.00154551]
[1645143797270,0.36611296,2874.9,2874.6,0.00154551]
[1645143797471,0.36611296,2874.8,2874.6,0.00154551]
[1645143797671,0.36611296,2874.7,2874.6,0.00154551]
[1645143797875,0.00186857,2875.0,2874.6,0.00154551]
[1645143797876,0.86979,2874.9,2874.6,0.00154551]
[1645143798313,0.86979,2874.9,2874.6,1.10415069]
[1645143798512,0.86979,2874.9,2874.6,0.00154551]
[1645143798718,0.87165857,2874.9,2874.6,1.10406265]
[1645143798913,0.87165857,2874.9,2874.6,0.00154551]
[1645143799315,0.87165857,2874.9,2874.6,1.10426592]
[1645143799515,0.86979,2874.9,2874.6,1.10426592]
[1645143799714,0.86979,2874.9,2874.6,0.00154551]
[1645143799914,0.87288958,2874.9,2874.6,0.00154551]
[1645143800316,0.3661532,2874.8,2874.6,0.00154551]
[1645143800519,0.87288958,2874.9,2874.6,0.00154551]
[1645143800722,0.36615058,2874.8,2874.6,0.00154551]
[1645143801120,1.23909018,2874.8,2874.6,0.00154551]
[1645143801321,0.8729396,2874.8,2874.6,0.00154551]
[1645143801522,0.36613144,2874.7,2874.6,0.00154551]
[1645143802175,0.00309962,2874.8,2874.6,1.104361]
[1645143802369,0.00309962,2874.8,2874.6,0.00154551]
[1645143802773,0.00309962,2874.8,2874.7,0.86965]
[1645143802972,0.00309962,2874.8,2874.7,1.97244412]
[1645143803172,0.36624589,2875.1,2874.7,1.97244412]
[1645143803368,0.36624589,2875.1,2874.7,0.86965]
[1645143803369,0.00309958,2874.9,2874.7,0.86965]
[1645143803769,0.00309958,2874.9,2874.6,1.74084551]
[1645143803968,0.36934547,2874.9,2874.6,1.74084551]
[1645143804168,0.36624589,2874.8,2874.6,1.74084551]
[1645143804373,0.86986,2874.8,2874.6,0.00154551]
[1645143804573,0.00309958,2874.9,2874.7,0.5919]
[1645143804772,0.00309958,2874.9,2874.8,26.44309095]
[1645143804971,0.00309958,2874.9,2874.8,27.84199094]
[1645143805172,0.00309958,2874.9,2874.8,62.5991526]
[1645143805373,0.00309958,2874.9,2874.8,63.97851543]
[1645143805619,0.36642136,2876.0,2875.1,2.6081]
[1645143805837,0.36642136,2876.0,2875.4,20.34]
[1645143806024,4.1061,2876.2,2875.6,20.34]
[1645143806227,0.35846491,2876.1,2875.7,1.69489095]
[1645143806425,4.1061,2876.2,2875.8,1.52109095]
[1645143806622,4.1061,2876.2,2875.9,3.25965095]
[1645143806825,4.6306,2876.8,2876.0,1.57689095]
[1645143807126,4.78671282,2876.7,2876.1,34.29974703]
[1645143807323,0.35831282,2876.6,2876.2,21.61689095]
[1645143807525,0.35831282,2876.6,2876.3,1.28717]
[1645143807723,0.35831282,2876.6,2876.3,0.418]
[1645143808527,1.1593,2876.9,2876.5,5.0]
[1645143808725,1.1593,2876.9,2876.6,5.27207756]
[1645143808923,1.1593,2876.9,2876.6,1.28707]
[1645143809366,0.35733427,2876.8,2876.6,1.28707]
[1645143809569,0.35733427,2876.8,2876.6,0.418]
[1645143809772,0.35733427,2876.8,2876.1,0.418]
[1645143809973,0.65733427,2876.8,2875.4,0.7222]
[1645143810168,0.65733427,2876.8,2875.5,1.10804504]
[1645143810169,0.35733427,2876.7,2875.5,1.10804504]
[1645143810371,0.35733427,2876.7,2875.6,20.34]
[1645143810569,0.35733427,2876.6,2875.7,1.69984504]
[1645143810774,0.00304314,2876.2,2875.8,1.10804504]
[1645143810977,0.00304314,2876.2,2876.0,0.86931]
[1645143811575,0.86936,2876.5,2876.0,0.86931]
[1645143811774,1.1593,2876.9,2876.0,0.86931]
[1645143811974,0.00310123,2876.2,2876.0,0.86931]
[1645143812375,0.00310123,2876.2,2875.7,2.1566]
[1645143812574,0.00310123,2876.2,2875.7,1.7386]
[1645143812781,0.357077,2876.6,2875.4,0.1738]
[1645143812980,1.1465,2876.5,2875.0,0.418]
[1645143813221,0.0031013,2876.1,2875.1,1.10687936]
[1645143813624,0.3601783,2876.1,2875.2,0.1738]
[1645143813920,12.0969783,2876.1,2875.2,0.1738]
[1645143814120,12.9645,2876.1,2875.1,0.1738]
[1645143814323,0.00310143,2875.8,2875.2,1.10675204]
[1645143814521,0.00310143,2875.8,2875.4,0.86942]
[1645143815121,5.4895,2876.1,2875.4,2.28742]
[1645143815323,5.4895,2876.1,2875.6,25.34]
[1645143815524,4.2618,2876.1,2875.7,22.03838497]
[1645143815727,4.2618,2876.1,2875.7,21.9318]
[1645143815929,0.01240251,2876.5,2875.7,22.80105]
[1645143816138,0.01240251,2876.5,2876.1,1.58050506]
[1645143816328,4.5048,2876.6,2876.1,1.58050506]
[1645143816329,4.5048,2876.6,2876.2,20.34]
[1645143816531,4.8264,2877.2,2876.4,20.34]
[1645143816731,0.01240307,2876.7,2876.5,33.37045608]
[1645143816971,0.01240307,2876.7,2876.5,33.67045608]
[1645143817574,4.8264,2877.2,2876.5,33.67045608]
[1645143817769,0.00186614,2876.7,2876.5,33.19665608]
[1645143818374,0.00186614,2876.7,2876.6,26.20907]
[1645143818574,0.00186614,2876.7,2876.6,27.80087]
[1645143818777,4.8264,2877.2,2876.6,27.80087]
[1645143818972,4.8264,2877.2,2876.7,0.1736]
[1645143819274,0.00310321,2876.8,2876.6,26.26066243]
[1645143819473,0.00310321,2876.8,2876.7,20.758]
[1645143819674,0.00310321,2876.8,2876.7,23.87793106]
[1645143819874,12.374,2877.7,2876.9,20.34]
[1645143820077,1.18092122,2878.1,2876.7,36.96273714]
[1645143820078,1.18092122,2878.1,2877.4,22.07736]
[1645143820279,1.18092122,2878.1,2877.9,20.34]
[1645143820280,0.33733025,2878.0,2877.9,20.34]
[1645143820473,0.00502122,2878.1,2877.9,0.418]
[1645143820730,0.00502122,2878.5,2878.0,0.86858]
[1645143820930,12.5062,2878.9,2878.0,0.86858]
[1645143820931,0.34138768,2878.4,2878.1,0.418]
[1645143821129,0.00502122,2878.4,2878.1,0.418]
[1645143821335,12.5062,2878.9,2877.6,0.418]
[1645143821336,0.34106208,2878.3,2877.6,0.418]
[1645143821531,0.34106208,2878.3,2877.1,1.0]
[1645143821532,0.87394122,2878.2,2877.1,1.3]
[1645143821727,0.34106208,2878.1,2877.2,0.86894]
[1645143821930,0.00502122,2878.0,2877.2,0.86894]
[1645143822228,5.01852122,2878.0,2877.1,2.21137]
[1645143822652,5.01852122,2878.0,2877.1,3.21137]
[1645143822653,0.00186159,2877.8,2877.1,3.21137]
[1645143822829,0.00688281,2877.8,2877.1,3.21137]
[1645143823029,0.00688281,2877.8,2877.1,2.21137]
[1645143823630,0.00688281,2877.8,2877.3,0.87617025]
[1645143823631,0.00502122,2877.8,2877.3,0.87617025]
[1645143823834,0.00502122,2877.8,2877.4,1.91094]
[1645143823835,0.00310282,2877.7,2877.4,1.91094]
[1645143824767,0.00502122,2877.8,2877.4,2.77961]
[1645143824965,0.00502122,2877.8,2877.5,0.86867]
[1645143825164,0.00310282,2877.7,2877.5,0.86867]
[1645143825970,0.00502122,2877.8,2877.5,0.86867]
[1645143826271,0.00502122,2877.8,2877.1,0.00310354]
[1645143826272,0.0031028,2877.7,2877.1,0.00310354]
[1645143826872,0.34373681,2877.7,2877.1,0.00310354]
[1645143827072,0.93024792,2877.4,2877.1,0.00310354]
[1645143827276,5.36280681,2877.7,2876.9,0.00699019]
[1645143827277,4.3235,2877.7,2876.9,0.00699019]
[1645143827473,4.3235,2877.7,2876.1,7.4892561]
[1645143827474,0.34078188,2877.6,2877.5,0.00697556]
[1645143828121,4.1499,2877.7,2877.5,0.00697556]
[1645143828921,4.15300282,2877.7,2877.5,0.00697556]
[1645143829321,4.15300282,2877.7,2877.5,0.87581556]
[1645143829523,4.1499,2877.7,2877.5,0.87581556]
[1645143829722,4.1499,2877.7,2877.5,0.00697556]
[1645143829925,4.1530028,2877.7,2877.5,0.00697556]
[1645143830927,0.34499291,2877.6,2877.5,0.00697556]
[1645143831132,4.1530028,2877.7,2877.5,0.00697556]
[1645143831974,4.1499,2877.7,2877.5,0.00697556]
[1645143832372,4.1499,2877.7,2877.1,0.00310354]
[1645143832373,4.1530028,2877.7,2877.1,0.00310354]
[1645143832571,0.86904,2877.6,2877.1,0.00310354]
[1645143833171,0.86904,2877.6,2876.9,0.00720523]
[1645143833571,0.87215291,2877.5,2877.1,0.00310338]
[1645143833774,11.0,2877.2,2876.1,1.58050506]
[1645143833974,5.58384944,2877.1,2876.1,1.58050506]
[1645143834173,0.86967,2876.8,2876.1,1.58050506]
[1645143834380,0.34516944,2876.7,2876.1,1.58050506]
[1645143834875,1.21478944,2876.7,2876.1,1.58050506]
[1645143835076,0.86962,2876.7,2876.1,1.58050506]
[1645143835274,0.86962,2876.7,2876.1,2.44975506]
[1645143835473,0.86962,2876.7,2876.2,0.1738]
[1645143835922,4.9389,2876.8,2876.3,20.34310633]
[1645143836522,4.9389,2876.8,2876.3,21.21229633]
[1645143836722,4.9389,2876.8,2876.3,21.20919]
[1645143836926,4.9389,2876.8,2876.5,20.34]
[1645143837324,4.9389,2876.8,2876.5,21.058]
[1645143837723,4.9389,2876.8,2876.5,0.718]
[1645143837924,5.80812,2876.8,2876.5,0.718]
[1645143838124,5.80812,2876.8,2876.1,36.96615114]
[1645143838125,0.18899766,2876.4,2876.1,1.75430506]
[1645143838523,0.18899766,2876.4,2876.2,1.5]
[1645143839381,1.05836766,2876.4,2876.2,1.5]
[1645143839584,1.05836766,2876.4,2876.2,1.50310637]
[1645143840384,1.05836766,2876.4,2876.1,1.58050506]
[1645143840582,1.05836766,2876.4,2876.2,0.00125158]
[1645143841586,1.05836766,2876.4,2876.1,1.58050506]
[1645143841787,1.05836766,2876.4,2876.2,0.00125158]
[1645143842887,1.05836766,2876.4,2876.1,1.58050506]
[1645143843121,1.05836766,2876.4,2876.2,0.00125158]
[1645143844022,1.05836766,2876.4,2876.1,1.58050506]
[1645143844023,0.18899766,2876.4,2876.1,1.58050506]
[1645143844224,0.18899766,2876.4,2876.2,0.00310907]
[1645143845225,0.18899766,2876.4,2876.1,1.58050506]
[1645143845525,0.18899766,2876.4,2876.2,20.76110907]
[1645143845730,0.18899766,2876.4,2876.3,20.5138]
[1645143845931,0.18899766,2876.4,2876.3,21.9318]
[1645143846428,0.18899766,2876.4,2876.3,22.97267572]
[1645143847072,0.18899766,2876.4,2876.3,21.8818]
[1645143847280,0.18899766,2876.4,2876.3,23.84282995]
[1645143847677,1.1907,2877.2,2876.3,23.84282995]
[1645143847678,1.1907,2877.2,2876.5,20.34]
[1645143847874,13.54982122,2877.6,2877.0,22.07785]
[1645143847875,0.00310785,2877.3,2877.0,22.07785]
[1645143848075,0.00310785,2877.3,2877.2,20.34]
[1645143848276,0.00310785,2877.3,2877.2,0.418]
[1645143848874,0.37072783,2877.5,2877.2,2.1558]
[1645143849078,0.00310835,2877.4,2877.2,2.1558]
[1645143849786,0.00310835,2877.4,2877.2,0.418]
[1645143849974,0.37072783,2877.5,2877.2,0.418]
[1645143850375,0.00310832,2877.4,2877.2,0.418]
[1645143850621,0.87218832,2877.4,2877.0,0.00310885]
[1645143850824,0.36599824,2877.3,2877.0,0.00310885]
[1645143851025,0.36599824,2877.3,2877.0,0.87216885]
[1645143851224,0.36599824,2877.3,2877.0,0.86906]
[1645143851425,15.01786473,2877.6,2877.0,0.86906]
[1645143851426,13.54982122,2877.6,2877.0,0.86906]
[1645143851626,0.00310836,2877.3,2877.0,0.87216875]
[1645143852625,0.00310836,2877.3,2877.0,4.27216875]
[1645143852825,0.00310836,2877.3,2877.1,3.0]
[1645143853626,1.51201327,2877.5,2877.1,3.0]
[1645143853825,0.87222837,2877.3,2877.1,3.0]
[1645143854476,0.00310837,2877.3,2877.1,3.0]
[1645143854880,13.54982122,2877.6,2877.1,3.0]
[1645143855077,0.00310837,2877.3,2877.1,3.0]
[1645143855783,0.00310837,2877.3,2877.0,3.40310879]
[1645143855986,1.73821,2877.5,2877.0,3.40310879]
[1645143855987,2.38119327,2877.5,2877.0,3.4]
[1645143856382,0.00310837,2877.3,2877.0,3.40310879]
[1645143856585,0.87219837,2877.3,2877.0,3.40310879]
[1645143856785,5.09179454,2877.3,2877.0,3.40310879]
[1645143856988,2.38150327,2877.2,2877.0,3.40310879]
[1645143857185,5.80275036,2877.2,2877.0,3.4]
[1645143857392,4.16454696,2877.1,2877.0,3.4]
[1645143857586,4.16454696,2877.1,2877.0,3.40310875]
[1645143857587,1.56801771,2877.1,2877.0,3.40310875]
[1645143857985,0.92503444,2877.1,2877.0,3.40310875]
[1645143858217,0.92503444,2877.1,2877.0,1.82236281]
[1645143858418,0.92503444,2877.1,2877.0,1.81925406]
[1645143858619,6.0,2877.0,2876.1,3.31902506]
[1645143858824,6.0,2877.0,2876.9,8.74e-06]
[1645143859021,9.57886266,2877.0,2876.9,8.74e-06]
[1645143859218,0.87043126,2876.8,2876.1,1.58050506]
[1645143859418,0.65862027,2876.5,2876.1,1.58050506]
[1645143859619,0.86965,2876.4,2876.1,1.58050506]
[1645143860520,2.8619954,2876.4,2876.1,1.58050506]
[1645143860921,2.8619954,2876.4,2876.1,4.98050506]
[1645143861724,1.9924254,2876.4,2876.1,4.98050506]
[1645143862267,1.9924254,2876.4,2876.1,4.98175433]
[1645143863269,1.9924254,2876.4,2876.1,4.98050506]
[1645143863470,1.9924254,2876.4,2876.1,4.98361685]
[1645143864471,0.86958,2876.4,2876.1,4.98050506]
[1645143864670,0.86958,2876.4,2876.1,4.98175433]
[1645143865072,10.19372,2876.6,2876.1,4.98175433]
[1645143865617,10.19372,2876.6,2876.1,4.98050506]
[1645143865825,10.19372,2876.6,2876.2,0.00124923]
[1645143866223,10.85234027,2876.6,2876.2,0.00124923]
[1645143866829,1.52810027,2876.5,2876.1,4.98050506]
[1645143867025,1.52810027,2876.5,2876.3,0.0012492]
[1645143867426,0.86948,2876.5,2876.3,0.0012492]
[1645143868027,10.19376,2876.6,2876.1,4.98050506]
[1645143868429,10.85238027,2876.6,2876.3,0.00311442]
[1645143869379,9.3243,2876.6,2876.1,4.98050506]
[1645143869579,9.3243,2876.6,2876.3,0.0031144]
[1645143870383,9.3243,2876.6,2876.2,0.86934]
[1645143870786,9.3243,2876.6,2876.3,0.0031144]
[1645143870986,0.34711895,2876.5,2876.3,0.4211144]
[1645143871286,9.3243,2876.6,2876.4,1.29698689]
[1645143871287,4.2996,2876.6,2876.4,1.29698689]
[1645143871485,4.2996,2876.6,2876.5,1.54118689]
[1645143871784,4.2996,2876.6,2876.5,2.01498689]
[1645143872384,4.2996,2876.6,2876.5,22.35498689]
[1645143872783,4.2996,2876.6,2876.5,22.18118689]
[1645143872988,4.2996,2876.6,2876.5,1.84118689]
[1645143874320,4.2996,2876.6,2876.5,22.18118689]
[1645143874518,4.2996,2876.6,2876.5,1.84118689]
[1645143875121,4.2996,2876.6,2876.5,22.18118689]
[1645143875525,4.1996,2876.6,2876.5,22.18118689]
[1645143875725,0.00079126,2876.8,2876.6,22.94724]
[1645143875926,0.00079126,2876.8,2876.6,23.36524]
[1645143876727,0.00079126,2876.8,2876.7,54.54251545]
[1645143877172,0.00079126,2876.8,2876.7,34.20251545]
[1645143878274,0.00079126,2876.8,2876.7,34.20257823]
[1645143878471,0.00079126,2876.8,2876.7,34.20261182]
[1645143878671,0.00079126,2876.8,2876.7,33.07865608]
[1645143879073,0.00079126,2876.8,2876.7,34.20266135]
[1645143879272,0.00079126,2876.8,2876.7,34.20268982]
[1645143879472,0.00079126,2876.8,2876.7,33.07865608]
[1645143879874,0.00079126,2876.8,2876.7,34.20271366]
[1645143880173,0.00079126,2876.8,2876.7,33.07865608]
[1645143880829,0.00079126,2876.8,2876.7,33.90263678]
[1645143881027,0.1849561,2876.5,2876.4,0.1738]
[1645143881226,0.53223076,2876.5,2876.4,1.1500445]
[1645143881626,0.53223076,2876.5,2876.4,2.0192645]
[1645143882028,0.1849561,2876.5,2876.4,2.0192645]
[1645143882729,0.50655229,2876.5,2876.4,2.0192645]
[1645143883133,0.00079126,2876.8,2876.7,2.89344771]
[1645143886075,0.00079126,2876.8,2876.7,3.41028093]
[1645143888828,0.00079126,2876.8,2876.7,2.89344771]
[1645143889025,0.65941153,2876.8,2876.7,2.89344771]
[1645143890230,0.00079126,2876.8,2876.7,2.89344771]
[1645143890428,0.65932691,2876.8,2876.7,2.89344771]
[1645143890734,0.00079126,2876.8,2876.7,2.89344771]
[1645143893577,0.00079126,2876.8,2876.7,5.1446867]
[1645143894879,0.00079126,2876.8,2876.7,3.4065267]
[1645143895730,0.00079126,2876.8,2876.4,1.73837]
[1645143895932,0.00079126,2876.8,2876.5,0.00311443]
[1645143895933,0.65932691,2876.8,2876.5,0.00311443]
[1645143896130,0.65932691,2876.8,2876.5,1.443e-05]
[1645143896131,0.87816037,2876.7,2876.5,1.443e-05]
[1645143896327,0.87816037,2876.6,2876.5,1.443e-05]
[1645143896526,0.00079126,2876.8,2876.5,1.443e-05]
[1645143896527,0.87895163,2876.8,2876.5,1.443e-05]
[1645143896927,0.87895163,2876.8,2876.1,1.58050506]
[1645143897328,0.86952,2876.6,2876.1,1.58050506]
[1645143897528,3.48727163,2876.8,2876.1,1.58050506]
[1645143897529,0.6584262,2876.5,2876.1,1.58050506]
[1645143897933,0.6584262,2876.6,2876.1,1.58050506]
[1645143898535,1.5278162,2876.6,2876.1,1.58050506]
[1645143899776,1.66003867,2876.6,2876.1,1.58050506]
[1645143900783,1.66003867,2876.6,2876.2,0.00311444]
[1645143900981,2.52942867,2876.6,2876.2,0.00311444]
[1645143901185,2.52942867,2876.6,2876.1,1.58050506]
[1645143901782,0.86953,2876.5,2876.1,1.58050506]
[1645143902083,0.6584262,2876.3,2876.1,1.58050506]
[1645143902584,1.73909,2876.4,2876.1,1.58050506]
[1645143903223,0.31317608,2876.3,2876.1,1.38283646]
[1645143903425,0.97160228,2876.3,2875.6,0.51168893]
[1645143903631,0.86967,2876.1,2875.2,0.69827187]
[1645143903835,1.73939,2875.9,2875.3,1.12905281]
[1645143904026,1.73939,2875.9,2874.8,7.3]
[1645143904027,4.1792927,2875.8,2874.8,7.3]
[1645143904226,0.97160228,2875.7,2874.9,1.12989869]
[1645143904425,1.09590539,2875.5,2874.8,7.3]
[1645143904630,1.18296608,2875.4,2874.9,1.12915972]
[1645143905025,7.9987,2875.6,2874.9,1.12915972]
[1645143905026,0.31317608,2875.3,2874.9,1.12915972]
[1645143905228,7.9987,2875.6,2874.9,1.12915972]
[1645143905427,1.224,2875.8,2875.0,0.1738]
[1645143905729,1.224,2875.8,2875.2,0.3]
[1645143905730,0.34122325,2875.7,2875.2,0.3]
[1645143905933,0.34122325,2875.7,2875.3,1.12915972]
[1645143906630,0.34122325,2875.7,2875.4,1.12837772]
[1645143906871,0.34122325,2875.7,2875.4,0.87256481]
[1645143907474,0.34122325,2875.7,2875.5,1.12822654]
[1645143907671,0.34122325,2875.7,2875.4,1.7388]
[1645143907872,12.2086,2876.1,2875.5,25.83194866]
[1645143908077,0.74662617,2876.7,2875.7,20.34]
[1645143908078,0.09131337,2876.7,2875.7,20.34]
[1645143908276,0.34113136,2876.6,2876.0,0.3]
[1645143908573,0.34113136,2876.6,2876.1,0.501]
[1645143909175,0.34113136,2876.6,2876.1,0.50411457]
[1645143909974,0.34113136,2876.6,2876.2,1.12818545]
[1645143910173,0.34113136,2876.6,2876.3,0.501]
[1645143911631,0.34113136,2876.6,2876.3,1.37022]
[1645143912526,0.34113136,2876.6,2876.3,0.501]
[1645143913127,0.34113136,2876.6,2876.3,20.841]
[1645143913329,0.34113136,2876.6,2876.3,53.61965608]
[1645143913928,0.34113136,2876.6,2876.3,33.27965608]
[1645143914133,0.34113136,2876.6,2876.3,34.14886608]
[1645143914571,0.34113136,2876.6,2876.3,33.27965608]
[1645143915173,0.34113136,2876.6,2876.3,53.61965608]
[1645143915373,0.34113136,2876.6,2876.3,33.27965608]
[1645143915577,0.34113136,2876.6,2876.3,32.77865608]
[1645143916277,0.34113136,2876.6,2876.3,36.17865608]
[1645143917882,0.34113136,2876.6,2876.3,37.04788608]
[1645143918127,0.3411968,2876.5,2876.3,37.04788608]
[1645143918327,0.3411968,2876.4,2876.3,36.17865608]
[1645143918528,0.3411968,2876.6,2876.3,36.17865608]
[1645143919830,0.999623,2876.6,2876.3,36.17865608]
[1645143920027,0.3411968,2876.5,2876.3,36.17865608]
[1645143920229,8.45758255,2876.7,2876.3,36.17865608]
[1645143920230,0.3411968,2876.4,2876.3,36.17865608]
[1645143920627,0.3411968,2876.5,2876.3,36.17865608]
[1645143920829,0.3411968,2876.4,2876.3,36.17865608]
[1645143921231,0.999623,2876.6,2876.3,3.4]
[1645143921429,8.66858629,2876.7,2876.3,3.4]
[1645143921430,0.3411968,2876.5,2876.3,3.4]
[1645143921631,0.3411968,2876.4,2876.3,3.4]
[1645143924390,0.3411968,2876.4,2876.3,30.69962148]
[1645143924586,0.3411968,2876.4,2876.3,25.69962148]
[1645143924781,0.3411968,2876.4,2876.3,5.53342148]
[1645143926232,0.00311392,2876.7,2876.4,0.8692]
[1645143926430,0.30704715,2876.7,2876.5,0.501]
[1645143926630,0.30704715,2876.7,2876.6,31.19824365]
[1645143926832,0.30704715,2876.7,2876.6,31.69924365]
[1645143927034,0.30393323,2876.7,2876.6,31.69924365]
[1645143927230,0.30704725,2876.7,2876.6,31.69924365]
[1645143928236,0.30393323,2876.7,2876.6,31.69924365]
[1645143933427,0.30393323,2876.7,2876.6,0.501]
[1645143933632,0.30393323,2876.7,2876.6,31.69924365]
[1645143934634,0.30393323,2876.7,2876.6,31.19824365]
[1645143939677,0.30393323,2876.7,2876.5,0.86923]
[1645143939880,0.30393323,2876.7,2876.6,31.19824365]
[1645143940481,0.30704725,2876.7,2876.6,31.19824365]
[1645143941131,0.30704725,2876.7,2876.6,29.61807376]
[1645143941334,0.30704725,2876.7,2876.5,0.86923]
[1645143941341,0.30393323,2876.7,2876.5,0.86923]
[1645143942431,0.30393323,2876.7,2876.6,29.61807376]
[1645143942736,0.30704725,2876.7,2876.6,29.61807376]
[1645143943833,0.30393323,2876.7,2876.6,29.61807376]
[1645143944984,0.30393323,2876.7,2876.6,30.81476255]
[1645143947686,0.30393323,2876.7,2876.6,29.61807376]
[1645143948331,0.30393323,2876.7,2876.6,30.48727376]
[1645143949335,0.30393323,2876.7,2876.6,31.68466046]
[1645143949834,0.30393323,2876.7,2876.6,30.81546046]
[1645143950335,0.30393323,2876.7,2876.6,31.11546046]
[1645143950734,0.30393323,2876.7,2876.6,31.98469046]
[1645143951435,0.30393323,2876.7,2876.6,1.1973867]
[1645143951638,0.30393323,2876.7,2876.3,3.4]
[1645143951878,0.30393323,2876.7,2876.5,0.86919]
[1645143952079,0.30393323,2876.7,2876.6,2.06791842]
[1645143952477,0.30704725,2876.7,2876.6,2.06791842]
[1645143952680,0.30704725,2876.7,2876.6,2.36791842]
[1645143953378,0.30393323,2876.7,2876.6,2.36791842]
[1645143954381,0.30393323,2876.7,2876.6,2.86891842]
[1645143954583,4.34910526,2876.8,2876.6,28.20891842]
[1645143954584,4.34599126,2876.8,2876.6,28.20891842]
[1645143954786,4.34599126,2876.8,2876.7,0.86906]
[1645143954982,4.34910526,2876.8,2876.7,1.37006]
[1645143955834,4.34599126,2876.8,2876.7,1.37006]
[1645143956534,4.34599126,2876.8,2876.7,30.98813376]
[1645143959137,4.34599126,2876.8,2876.7,30.48713376]
[1645143959784,0.00311396,2876.9,2876.7,30.48713376]
[1645143959981,0.00311396,2876.9,2876.7,30.98813376]
[1645143960183,0.00311396,2876.9,2876.7,30.11907376]
[1645143960481,14.1937262,2877.1,2876.7,30.11907376]
[1645143960887,0.00311394,2876.9,2876.7,29.61807376]
[1645143961287,0.00311394,2876.9,2876.7,0.86926]
[1645143961688,13.5353,2877.1,2876.7,28.90723552]
[1645143962189,0.00311394,2876.9,2876.7,28.90723552]
[1645143962987,13.5353,2877.1,2876.7,28.90723552]
[1645143963234,0.00311394,2876.9,2876.7,28.90723552]
[1645143964230,14.1937262,2877.1,2876.7,28.90723552]
[1645143964430,0.00311394,2876.9,2876.7,28.90723552]
[1645143965438,13.5353,2877.1,2876.7,28.90723552]
[1645143965637,0.00311394,2876.9,2876.7,28.90723552]
[1645143966539,13.5353,2877.1,2876.7,28.03797552]
[1645143966739,0.00311394,2876.9,2876.7,28.03797552]
[1645143967581,0.00311394,2876.9,2876.7,28.90724552]
[1645143967781,14.1937262,2877.1,2876.7,28.90724552]
[1645143967982,0.00311394,2876.9,2876.7,28.90724552]
[1645143968986,14.1937262,2877.1,2876.7,28.90724552]
[1645143969183,0.00311394,2876.9,2876.7,28.90724552]
[1645143970083,14.1937262,2877.1,2876.7,28.90724552]
[1645143970485,0.00311394,2876.9,2876.7,28.90724552]
[1645143971333,14.1937262,2877.1,2876.7,28.90724552]
[1645143971534,0.00311394,2876.9,2876.7,28.90724552]
[1645143972636,14.1937262,2877.1,2876.7,28.90724552]
[1645143972840,0.00311394,2876.9,2876.7,28.03797552]
[1645143973737,0.6584262,2877.0,2876.7,28.90724552]
[1645143973941,0.6584262,2876.8,2876.7,28.03797552]
[1645143974139,0.6584262,2876.8,2876.3,3.4]
[1645143974140,5.88127431,2876.9,2876.3,3.4]
[1645143974384,0.66104996,2876.6,2876.3,3.4]
[1645143974584,1.05196037,2876.8,2876.3,3.4]
[1645143974585,0.88317379,2876.5,2876.4,1.25520739]
[1645143974786,1.75272379,2876.5,2876.4,1.25520739]
[1645143974988,0.22212383,2876.5,2876.4,1.25520739]
[1645143975386,0.66104996,2876.6,2876.4,1.55520739]
[1645143975586,0.66104996,2876.6,2876.4,0.3]
[1645143975787,0.66416395,2876.7,2876.5,1.25489695]
[1645143975987,0.66416395,2876.7,2876.6,1.25489695]
[1645143976191,0.66104996,2876.7,2876.6,1.25489695]
[1645143976387,0.66416398,2876.7,2876.6,0.3]
[1645143976585,0.00311402,2876.7,2876.6,0.3]
[1645143976784,0.00311402,2876.7,2876.3,3.7]
[1645143976987,0.6639552,2876.7,2876.4,1.25479888]
[1645143977387,1.53028118,2876.7,2876.4,1.25479888]
[1645143977586,0.22204457,2876.6,2876.4,1.25479888]
[1645143977989,0.22204457,2876.5,2876.4,1.25479888]
[1645143978234,0.88288575,2876.6,2876.4,1.25479888]
[1645143978433,0.00311404,2876.7,2876.3,3.7]
[1645143978434,0.88288575,2876.5,2876.3,3.7]
[1645143978637,0.22204457,2876.4,2876.3,3.7]
[1645143978842,1.74752037,2876.8,2876.3,4.95468917]
[1645143978843,0.66084118,2876.5,2876.3,4.95468917]
[1645143979038,0.66084118,2876.5,2876.3,3.7]
[1645143979539,0.22204457,2876.6,2876.3,3.7]
[1645143979540,0.66084118,2876.6,2876.4,1.25477062]
[1645143979739,0.22193354,2876.6,2876.4,1.25477062]
[1645143981344,0.22193354,2876.6,2876.5,1.25470501]
[1645143981640,0.22193354,2876.6,2876.4,1.25470969]
[1645143981878,0.66084118,2876.5,2876.3,1.90062585]
[1645143982081,3.37483443,2876.4,2876.3,1.90062585]
[1645143982279,0.22193354,2876.4,2876.3,1.90062585]
[1645143982479,0.66018421,2876.4,2876.3,1.90062585]
[1645143982884,0.22193354,2876.4,2876.3,1.90062585]
[1645143983082,0.88211775,2876.5,2876.3,2.20062585]
[1645143983283,0.66018421,2876.4,2876.3,2.20062585]
[1645143984083,0.22193354,2876.4,2876.3,3.44512238]
[1645143984285,4.29438062,2876.6,2876.3,2.20062585]
[1645143984483,0.88211775,2876.5,2876.3,2.20062585]
[1645143984683,0.22193354,2876.4,2876.3,2.20062585]
[1645143984886,0.66018421,2876.5,2876.3,2.20062585]
[1645143985938,0.22193354,2876.6,2876.3,2.20062585]
[1645143985939,0.88211775,2876.6,2876.3,2.20062585]
[1645143986139,0.88211775,2876.5,2876.3,2.20062585]
[1645143988541,4.30718681,2876.5,2876.3,2.20062585]
[1645143988742,3.63296572,2876.4,2876.3,2.20062585]
[1645143988944,0.88211775,2876.4,2876.3,2.20062585]
[1645143989248,0.22193354,2876.4,2876.3,2.20062585]
[1645143989480,0.88211775,2876.4,2876.3,2.20062585]
[1645143990082,0.22193354,2876.4,2876.3,2.20062585]
[1645143991584,0.2029599,2876.4,2876.3,2.20062585]
[1645143991985,0.86314411,2876.5,2876.3,2.20062585]
[1645143992183,0.2029599,2876.4,2876.3,2.20062585]
[1645143992685,0.86314411,2876.5,2876.3,2.20062585]
[1645143995135,0.2029599,2876.4,2876.3,2.20062585]
[1645143995535,0.2029599,2876.5,2876.3,2.20062585]
[1645143995735,0.2029599,2876.4,2876.3,2.20062585]
[1645143996138,0.2029599,2876.5,2876.3,2.20062585]
[1645143996341,0.2029599,2876.4,2876.3,2.20062585]